fUSD/lending_fUSD_20240712
["ID","MTS","AMOUNT","RATE_DAILY","PERIOD"]
[331771574,1720757473965,-1109.64,0.00013899,2]
[331771575,1720757473978,-945.94,0.00013899,2]
[331771576,1720757473988,-1024.36,0.00013899,2]
[331771577,1720757473997,-724.76,0.00013899,2]
[331771578,1720757474007,-673.24,0.00013899,2]
[331771579,1720757474016,-1012.87,0.00013899,2]
[331771580,1720757474026,-1194.27,0.00013899,2]
[331771581,1720757474035,-845.08,0.00013899,2]
[331771582,1720757474044,-791.48,0.00013899,2]
[331771583,1720757474053,-743.83,0.00013899,2]
[331771584,1720757474063,-500.0,0.00013899,2]
[331771585,1720757474072,-500.0,0.00013899,2]
[331771586,1720757474082,-500.0,0.00013899,2]
[331771587,1720757474092,-500.0,0.00013899,2]
[331771588,1720757474101,-622.37,0.00013899,2]
[331771589,1720757474111,-500.0,0.00013899,2]
[331771590,1720757474120,-7562.89228858,0.000139,2]
[331771591,1720757474130,-500.0,0.00013951,2]
[331771592,1720757474139,-500.0,0.00013951,2]
[331771593,1720757474149,-607.37,0.00013951,2]
[331771594,1720757474158,-500.0,0.00013951,2]
[331771595,1720757474167,-500.0,0.00013951,2]
[331771596,1720757474177,-661.53,0.00013951,2]
[331771597,1720757474186,-964.18,0.00013951,2]
[331771598,1720757474196,-865.87,0.00013951,2]
[331771599,1720757474206,-581.15,0.00013951,2]
[331771600,1720757474215,-578.09,0.00013951,2]
[331771601,1720757474224,-1018.27,0.00013951,2]
[331771602,1720757474234,-500.0,0.00013951,2]
[331771603,1720757474243,-1863.6,0.00013951,2]
[331771604,1720757474252,-500.0,0.00013951,2]
[331771605,1720757474262,-779.74,0.00013951,2]
[331771606,1720757474271,-502.48,0.00013951,2]
[331771607,1720757474281,-538.2,0.00013951,2]
[331771608,1720757474290,-500.0,0.00013951,2]
[331771609,1720757474299,-500.0,0.00013952,2]
[331771610,1720757474308,-347.83807239,0.00013952,2]
[331771611,1720757474317,-500.0,0.00013952,2]
[331771612,1720757474326,-500.0,0.00013952,2]
[331771613,1720757474336,-500.0,0.00013952,2]
[331771614,1720757474345,-583.49,0.00013952,2]
[331771615,1720757474355,-500.0,0.00013952,2]
[331771616,1720757474364,-500.0,0.00013952,2]
[331771617,1720757474373,-549.23,0.00013952,2]
[331771618,1720757474383,-500.0,0.00013952,2]
[331771619,1720757474393,-500.0,0.00013952,2]
[331771620,1720757474402,-626.26,0.00013952,2]
[331771621,1720757474412,-500.0,0.00013952,2]
[331771622,1720757474421,-682.42,0.00013952,2]
[331771623,1720757474430,-501.38,0.00013952,2]
[331771624,1720757474439,-500.0,0.00013952,2]
[331771625,1720757474449,-576.96,0.00013952,2]
[331771626,1720757474458,-1507.31,0.00013952,2]
[331771627,1720757474467,-913.06,0.00013952,2]
[331771628,1720757474476,-500.0,0.00013952,2]
[331771629,1720757474485,-500.0,0.00013952,2]
[331771630,1720757474495,-500.0,0.00013952,2]
[331771631,1720757474504,-1722.43,0.00013952,2]
[331771632,1720757474513,-500.0,0.00013952,2]
[331771633,1720757474524,-500.0,0.00013952,2]
[331771634,1720757474533,-500.0,0.00013952,2]
[331771635,1720757474541,-840.09,0.00013952,2]
[331771636,1720757474550,-500.0,0.00013952,2]
[331771637,1720757474559,-873.81,0.00013952,2]
[331771638,1720757474568,-697.36,0.00013952,2]
[331771639,1720757474578,-500.0,0.00013952,2]
[331771640,1720757474587,-500.0,0.00013952,2]
[331771641,1720757474597,-500.0,0.00013952,2]
[331771642,1720757474607,-500.0,0.00013952,2]
[331771643,1720757474616,-514.6,0.00013952,2]
[331771644,1720757474625,-500.0,0.00013952,2]
[331771645,1720757474634,-609.39,0.00013952,2]
[331771646,1720757474643,-551.05,0.00013952,2]
[331771647,1720757474652,-759.34,0.00013952,2]
[331771648,1720757474662,-500.0,0.00013952,2]
[331771649,1720757474671,-500.0,0.00013952,2]
[331771650,1720757474680,-1263.93,0.00013952,2]
[331771651,1720757474689,-500.0,0.00013952,2]
[331771652,1720757474699,-500.0,0.00013952,2]
[331771653,1720757474708,-500.0,0.00013952,2]
[331771654,1720757474717,-500.0,0.00013952,2]
[331771655,1720757474727,-500.0,0.00013952,2]
[331771656,1720757474736,-544.67,0.00013952,2]
[331771657,1720757474750,-500.0,0.00013952,2]
[331771658,1720757474759,-851.02,0.00013952,2]
[331771659,1720757474768,-500.0,0.00013952,2]
[331771660,1720757474778,-500.0,0.00013952,2]
[331771661,1720757474788,-833.62,0.00013952,2]
[331771662,1720757474797,-500.0,0.00013952,2]
[331771663,1720757474807,-500.0,0.00013952,2]
[331771664,1720757474816,-500.0,0.00013952,2]
[331771665,1720757474826,-830.98,0.00013952,2]
[331771666,1720757474835,-564.11,0.00013952,2]
[331771667,1720757474845,-500.0,0.00013952,2]
[331771668,1720757474855,-1852.64,0.00013952,2]
[331771669,1720757474864,-500.0,0.00013952,2]
[331771670,1720757474874,-500.0,0.00013952,2]
[331771671,1720757474884,-518.19,0.00013952,2]
[331771672,1720757474897,-534.62,0.00013952,2]
[331771673,1720757474907,-500.0,0.00013952,2]
[331771674,1720757474916,-500.0,0.00013952,2]
[331771675,1720757474926,-500.0,0.00013952,2]
[331771676,1720757474936,-500.0,0.00013952,2]
[331771677,1720757474946,-736.84,0.00013952,2]
[331771678,1720757474956,-500.0,0.00013952,2]
[331771679,1720757474967,-980.78,0.00013952,2]
[331771680,1720757474978,-568.53,0.00013952,2]
[331771681,1720757474988,-1931.53,0.00013952,2]
[331771682,1720757474999,-500.0,0.00013952,2]
[331771683,1720757475009,-500.0,0.00013952,2]
[331771684,1720757475019,-500.0,0.00013952,2]
[331771685,1720757475028,-500.0,0.00013952,2]
[331771686,1720757475037,-500.0,0.00013952,2]
[331771687,1720757475047,-500.0,0.00013952,2]
[331771688,1720757475055,-555.15,0.00013952,2]
[331771689,1720757475065,-500.0,0.00013952,2]
[331771690,1720757475074,-500.0,0.00013952,2]
[331771691,1720757475084,-500.0,0.00013952,2]
[331771692,1720757475093,-500.0,0.00013952,2]
[331771693,1720757475102,-475.46,0.00013952,2]
[331771694,1720757475112,-500.0,0.00013952,2]
[331771695,1720757475121,-500.0,0.00013952,2]
[331771696,1720757475130,-636.47,0.00013952,2]
[331771697,1720757475140,-500.0,0.00013952,2]
[331771698,1720757475149,-500.0,0.00013952,2]
[331771699,1720757475159,-500.0,0.00013952,2]
[331771700,1720757475169,-449.07895891,0.00013952,2]
[331771701,1720757475179,-500.0,0.00013952,2]
[331771702,1720757475188,-500.0,0.00013952,2]
[331771703,1720757475199,-500.0,0.00013952,2]
[331771704,1720757475208,-500.0,0.00013952,2]
[331771705,1720757475218,-500.0,0.00013952,2]
[331771706,1720757475227,-500.0,0.00013952,2]
[331771707,1720757475237,-500.0,0.00013952,2]
[331771708,1720757475248,-570.21,0.00013952,2]
[331771709,1720757475258,-806.51,0.00013952,2]
[331771710,1720757475267,-500.0,0.00013952,2]
[331771711,1720757475276,-500.0,0.00013952,2]
[331771712,1720757475286,-638.4,0.00013952,2]
[331771713,1720757475295,-500.0,0.00013952,2]
[331771714,1720757475305,-500.0,0.00013952,2]
[331771715,1720757475313,-500.0,0.00013952,2]
[331771716,1720757475323,-511.4690158,0.00013952,2]
[331771717,1720757475332,-500.0,0.00013952,2]
[331771718,1720757475342,-500.0,0.00013952,2]
[331771719,1720757475352,-500.0,0.00013952,2]
[331771720,1720757475362,-500.0,0.00013952,2]
[331771721,1720757475371,-500.0,0.00013952,2]
[331771722,1720757475380,-500.0,0.00013952,2]
[331771723,1720757475390,-561.3,0.00013952,2]
[331771724,1720757475399,-522.3,0.00013952,2]
[331771725,1720757475409,-500.0,0.00013952,2]
[331771726,1720757475418,-894.88,0.00013952,2]
[331771727,1720757475427,-981.53,0.00013952,2]
[331771728,1720757475436,-500.0,0.00013952,2]
[331771729,1720757475445,-500.0,0.00013952,2]
[331771730,1720757475456,-500.0,0.00013952,2]
[331771731,1720757475465,-500.0,0.00013952,2]
[331771732,1720757475474,-500.0,0.00013952,2]
[331771733,1720757475483,-500.0,0.00013952,2]
[331771734,1720757475494,-500.0,0.00013952,2]
[331771735,1720757475503,-1681.46,0.00013952,2]
[331771736,1720757475511,-500.0,0.00013952,2]
[331771737,1720757475521,-611.17,0.00013952,2]
[331771738,1720757475530,-2534.89,0.00013952,2]
[331771739,1720757475539,-500.0,0.00013952,2]
[331771740,1720757475549,-509.17,0.00013952,2]
[331771741,1720757475558,-6163.29,0.00013952,2]
[331771742,1720757475568,-1055.69,0.00013952,2]
[331771743,1720757475578,-500.0,0.00013952,2]
[331771744,1720757475586,-226.51,0.00013952,2]
[331771745,1720757475595,-656.41,0.00013952,2]
[331771746,1720757475605,-500.0,0.00013952,2]
[331771747,1720757475614,-1065.86,0.00013952,2]
[331771748,1720757475623,-934.79,0.00013952,2]
[331771749,1720757475632,-1107.56,0.00013952,2]
[331771750,1720757475642,-998.0,0.00013952,2]
[331771751,1720757475651,-811.03,0.00013952,2]
[331771752,1720757475660,-500.0,0.00013952,2]
[331771753,1720757475670,-972.55,0.00013952,2]
[331771754,1720757475679,-612.46,0.00013952,2]
[331771755,1720757475689,-500.0,0.00013952,2]
[331771756,1720757475698,-500.0,0.00013952,2]
[331771757,1720757475707,-500.0,0.00013952,2]
[331771758,1720757475716,-608.68,0.00013952,2]
[331771759,1720757475726,-1181.36,0.00013952,2]
[331771760,1720757475735,-500.0,0.00013952,2]
[331771761,1720757475744,-565.4,0.00013952,2]
[331771762,1720757475754,-609.71,0.00013952,2]
[331771763,1720757475763,-500.0,0.00013952,2]
[331771764,1720757475772,-500.0,0.00013952,2]
[331771765,1720757475782,-500.0,0.00013952,2]
[331771766,1720757475791,-934.92,0.00013952,2]
[331771767,1720757475800,-652.61,0.00013952,2]
[331771768,1720757475810,-722.44,0.00013952,2]
[331771769,1720757475819,-500.0,0.00013952,2]
[331771770,1720757475829,-2779.15,0.00013952,2]
[331771771,1720757475839,-500.0,0.00013952,2]
[331771772,1720757475848,-564.31,0.00013952,2]
[331771773,1720757475858,-1504.41,0.00013952,2]
[331771774,1720757475867,-500.0,0.00013952,2]
[331771775,1720757475877,-579.67,0.00013952,2]
[331771776,1720757475887,-500.0,0.00013952,2]
[331771777,1720757475899,-500.0,0.00013952,2]
[331771778,1720757475909,-1184.06,0.00013952,2]
[331771779,1720757475918,-500.0,0.00013952,2]
[331771780,1720757475927,-425.64,0.00013952,2]
[331771781,1720757475937,-500.0,0.00013952,2]
[331771782,1720757475947,-500.0,0.00013952,2]
[331771783,1720757475956,-455.76934525,0.00013952,2]
[331771784,1720757475966,-725.24,0.00013952,2]
[331771785,1720757475978,-500.0,0.00013952,2]
[331771786,1720757475988,-500.0,0.00013952,2]
[331771787,1720757475997,-520.88,0.00013952,2]
[331771788,1720757476007,-500.0,0.00013952,2]
[331771789,1720757476016,-500.0,0.00013952,2]
[331771790,1720757476025,-717.64,0.00013952,2]
[331771791,1720757476035,-500.0,0.00013952,2]
[331771792,1720757476046,-500.0,0.00013952,2]
[331771793,1720757476056,-611.94,0.00013952,2]
[331771794,1720757476065,-500.0,0.00013952,2]
[331771795,1720757476074,-707.22,0.00013952,2]
[331771796,1720757476083,-500.0,0.00013952,2]
[331771797,1720757476093,-234.24,0.00013952,2]
[331771798,1720757476103,-943.54,0.00013952,2]
[331771799,1720757476114,-500.0,0.00013952,2]
[331771800,1720757476124,-503.01,0.00013952,2]
[331771801,1720757476134,-651.34,0.00013952,2]
[331771802,1720757476145,-1291.4,0.00013952,2]
[331771803,1720757476155,-500.0,0.00013952,2]
[331771804,1720757476165,-947.18,0.00013952,2]
[331771805,1720757476174,-500.0,0.00013952,2]
[331771806,1720757476184,-904.15,0.00013952,2]
[331771807,1720757476194,-565.59,0.00013952,2]
[331771808,1720757476203,-500.0,0.00013952,2]
[331771809,1720757476212,-770.8,0.00013952,2]
[331771810,1720757476221,-817.67,0.00013952,2]
[331771811,1720757476230,-500.0,0.00013952,2]
[331771812,1720757476239,-895.25,0.00013952,2]
[331771813,1720757476251,-500.0,0.00013952,2]
[331771814,1720757476260,-500.0,0.00013952,2]
[331771815,1720757476269,-500.0,0.00013952,2]
[331771816,1720757476278,-500.0,0.00013952,2]
[331771817,1720757476287,-500.0,0.00013952,2]
[331771818,1720757476297,-1542.6,0.00013952,2]
[331771819,1720757476306,-500.0,0.00013952,2]
[331771820,1720757476315,-1738.7,0.00013952,2]
[331771821,1720757476324,-500.0,0.00013952,2]
[331771822,1720757476334,-500.0,0.00013952,2]
[331771823,1720757476343,-573.32,0.00013952,2]
[331771824,1720757476353,-1427.99,0.00013952,2]
[331771825,1720757476361,-500.0,0.00013952,2]
[331771826,1720757476370,-500.0,0.00013952,2]
[331771827,1720757476382,-1159.29,0.00013952,2]
[331771828,1720757476391,-500.0,0.00013952,2]
[331771829,1720757476401,-500.0,0.00013952,2]
[331771830,1720757476411,-500.0,0.00013952,2]
[331771831,1720757476420,-500.0,0.00013952,2]
[331771832,1720757476430,-514.91,0.00013952,2]
[331771833,1720757476439,-948.74,0.00013952,2]
[331771834,1720757476448,-414.94156634,0.00013952,2]
[331771835,1720757476457,-638.45,0.00013952,2]
[331771836,1720757476467,-500.0,0.00013952,2]
[331771837,1720757476476,-1793.28,0.00013952,2]
[331771838,1720757476485,-500.0,0.00013952,2]
[331771839,1720757476494,-308.12503033,0.00013952,2]
[331771840,1720757476504,-893.16,0.00013952,2]
[331771841,1720757476513,-1317.99,0.00013952,2]
[331771842,1720757476522,-799.98,0.00013952,2]
[331771843,1720757476531,-500.0,0.00013952,2]
[331771844,1720757476541,-500.0,0.00013952,2]
[331771845,1720757476550,-1352.78,0.00013952,2]
[331771846,1720757476559,-1035.5,0.00013952,2]
[331771847,1720757476568,-738.31,0.00013952,2]
[331771848,1720757476578,-430.41034455,0.00013952,2]
[331771849,1720757476587,-500.0,0.00013952,2]
[331771850,1720757476596,-884.34,0.00013952,2]
[331771851,1720757476606,-500.0,0.00013952,2]
[331771852,1720757476616,-1025.74,0.00013952,2]
[331771853,1720757476626,-559.94,0.00013952,2]
[331771854,1720757476637,-500.0,0.00013952,2]
[331771855,1720757476646,-500.0,0.00013952,2]
[331771856,1720757476655,-754.05,0.00013952,2]
[331771857,1720757476664,-500.0,0.00013952,2]
[331771858,1720757476674,-500.0,0.00013952,2]
[331771859,1720757476683,-1338.51,0.00013952,2]
[331771860,1720757476693,-1319.14,0.00013952,2]
[331771861,1720757476702,-672.17,0.00013952,2]
[331771862,1720757476711,-500.0,0.00013952,2]
[331771863,1720757476720,-500.0,0.00013952,2]
[331771864,1720757476729,-500.0,0.00013952,2]
[331771865,1720757476738,-748.27,0.00013952,2]
[331771866,1720757476750,-500.0,0.00013952,2]
[331771867,1720757476759,-500.0,0.00013952,2]
[331771868,1720757476768,-503.57301322,0.00013952,2]
[331771869,1720757476778,-1793.06,0.00013952,2]
[331771870,1720757476787,-779.73,0.00013952,2]
[331771871,1720757476796,-500.0,0.00013952,2]
[331771872,1720757476805,-500.0,0.00013952,2]
[331771873,1720757476815,-500.0,0.00013952,2]
[331771874,1720757476824,-500.0,0.00013952,2]
[331771875,1720757476834,-564.74,0.00013952,2]
[331771876,1720757476843,-785.73,0.00013952,2]
[331771877,1720757476853,-628.91,0.00013952,2]
[331771878,1720757476862,-2440.6,0.00013952,2]
[331771879,1720757476871,-509.53,0.00013952,2]
[331771880,1720757476881,-619.95,0.00013952,2]
[331771881,1720757476892,-500.0,0.00013952,2]
[331771882,1720757476904,-763.74,0.00013952,2]
[331771883,1720757476913,-500.0,0.00013952,2]
[331771884,1720757476923,-509.98,0.00013952,2]
[331771885,1720757476932,-3231.91,0.00013952,2]
[331771886,1720757476942,-1174.9,0.00013952,2]
[331771887,1720757476952,-910.97,0.00013952,2]
[331771888,1720757476961,-958.67,0.00013952,2]
[331771889,1720757476971,-500.0,0.00013952,2]
[331771890,1720757476982,-527.43,0.00013952,2]
[331771891,1720757476991,-2247.3,0.00013952,2]
[331771892,1720757477003,-515.55,0.00013952,2]
[331771893,1720757477012,-500.0,0.00013952,2]
[331771894,1720757477022,-500.0,0.00013952,2]
[331771895,1720757477032,-500.0,0.00013952,2]
[331771896,1720757477042,-500.0,0.00013952,2]
[331771897,1720757477051,-1319.06,0.00013952,2]
[331771898,1720757477061,-844.55,0.00013952,2]
[331771899,1720757477072,-219.03,0.00013952,2]
[331771900,1720757477082,-500.0,0.00013952,2]
[331771901,1720757477093,-493.84400855,0.00013952,2]
[331771902,1720757477103,-690.42,0.00013953,2]
[331771903,1720757477113,-500.0,0.00013953,2]
[331771904,1720757477123,-619.16,0.00013953,2]
[331771905,1720757477134,-500.0,0.00013953,2]
[331771906,1720757477144,-500.0,0.00013953,2]
[331771907,1720757477154,-500.0,0.00013953,2]
[331771908,1720757477164,-500.0,0.00013953,2]
[331771909,1720757477173,-500.0,0.00013953,2]
[331771910,1720757477184,-500.0,0.00013953,2]
[331771911,1720757477193,-500.0,0.00013953,2]
[331771912,1720757477203,-500.0,0.00013953,2]
[331771913,1720757477213,-500.0,0.00013953,2]
[331771914,1720757477224,-712.12,0.00013953,2]
[331771915,1720757477234,-500.0,0.00013953,2]
[331771916,1720757477245,-616.17,0.00013953,2]
[331771917,1720757477254,-500.0,0.00013953,2]
[331771918,1720757477263,-585.14,0.00013953,2]
[331771919,1720757477272,-500.0,0.00013953,2]
[331771920,1720757477282,-500.0,0.00013953,2]
[331771921,1720757477292,-500.0,0.00013953,2]
[331771922,1720757477302,-813.08,0.00013953,2]
[331771923,1720757477312,-620.92,0.00013953,2]
[331771924,1720757477323,-500.0,0.00013953,2]
[331771925,1720757477333,-500.0,0.00013953,2]
[331771926,1720757477343,-500.0,0.00013953,2]
[331771927,1720757477355,-500.0,0.00013953,2]
[331771928,1720757477366,-500.0,0.00013953,2]
[331771929,1720757477376,-503.34806235,0.00013953,2]
[331771930,1720757477385,-500.0,0.00013953,2]
[331771931,1720757477394,-411.16271236,0.00013953,2]
[331771932,1720757477404,-500.0,0.00013953,2]
[331771933,1720757477413,-500.0,0.00013953,2]
[331771934,1720757477422,-500.0,0.00013953,2]
[331771935,1720757477432,-500.0,0.00013953,2]
[331771936,1720757477441,-500.0,0.00013953,2]
[331771937,1720757477450,-500.0,0.00013953,2]
[331771938,1720757477459,-500.0,0.00013953,2]
[331771939,1720757477469,-500.0,0.00013953,2]
[331771940,1720757477478,-500.0,0.00013953,2]
[331771941,1720757477487,-684.88,0.00013953,2]
[331771942,1720757477498,-500.0,0.00013953,2]
[331771943,1720757477508,-564.13,0.00013953,2]
[331771944,1720757477517,-500.0,0.00013953,2]
[331771945,1720757477526,-500.0,0.00013953,2]
[331771946,1720757477536,-428.73088125,0.00013953,2]
[331771947,1720757477545,-500.0,0.00013953,2]
[331771948,1720757477555,-500.0,0.00013953,2]
[331771949,1720757477564,-500.0,0.00013953,2]
[331771950,1720757477574,-500.0,0.00013953,2]
[331771951,1720757477583,-500.0,0.00013953,2]
[331771952,1720757477592,-582.01148331,0.00013953,2]
[331771953,1720757477602,-500.0,0.00013953,2]
[331771954,1720757477614,-851.71,0.00013953,2]
[331771955,1720757477626,-500.0,0.00013953,2]
[331771956,1720757477637,-500.0,0.00013953,2]
[331771957,1720757477648,-211.94281374,0.00013953,2]
[331771958,1720757477658,-500.0,0.00013953,2]
[331771959,1720757477668,-500.0,0.00013953,2]
[331771960,1720757477680,-500.0,0.00013953,2]
[331771961,1720757477691,-500.0,0.00013953,2]
[331771962,1720757477701,-765.82,0.00013953,2]
[331771963,1720757477712,-500.0,0.00013953,2]
[331771964,1720757477723,-500.0,0.00013953,2]
[331771965,1720757477732,-464.66,0.00013953,2]
[331771966,1720757477742,-500.0,0.00013953,2]
[331771967,1720757477755,-500.0,0.00013953,2]
[331771968,1720757477765,-500.0,0.00013953,2]
[331771969,1720757477774,-500.0,0.00013953,2]
[331771970,1720757477785,-215.289711,0.00013953,2]
[331771971,1720757477795,-500.0,0.00013953,2]
[331771972,1720757477805,-805.51,0.00013953,2]
[331771973,1720757477815,-656.28,0.00013953,2]
[331771974,1720757477825,-500.0,0.00013953,2]
[331771975,1720757477835,-170.66,0.00013953,2]
[331771976,1720757477845,-500.0,0.00013953,2]
[331771977,1720757477854,-500.0,0.00013953,2]
[331771978,1720757477864,-1117.65,0.00013953,2]
[331771979,1720757477875,-500.0,0.00013953,2]
[331771980,1720757477884,-639.76165049,0.00013953,2]
[331771981,1720757477896,-500.0,0.00013953,2]
[331771982,1720757477906,-500.0,0.00013953,2]
[331771983,1720757477916,-1568.72,0.00013953,2]
[331771984,1720757477926,-500.0,0.00013953,2]
[331771985,1720757477936,-176.94,0.00013953,2]
[331771986,1720757477947,-658.55,0.00013953,2]
[331771987,1720757477957,-1014.23,0.00013953,2]
[331771988,1720757477967,-500.0,0.00013953,2]
[331771989,1720757477977,-500.0,0.00013953,2]
[331771990,1720757477986,-518.11,0.00013953,2]
[331771991,1720757477997,-747.47,0.00013953,2]
[331771992,1720757478007,-500.0,0.00013953,2]
[331771993,1720757478016,-671.09,0.00013953,2]
[331771994,1720757478026,-500.0,0.00013953,2]
[331771995,1720757478036,-500.0,0.00013953,2]
[331771996,1720757478046,-342.87,0.00013953,2]
[331771997,1720757478056,-500.0,0.00013953,2]
[331771998,1720757478065,-656.86,0.00013953,2]
[331771999,1720757478075,-500.0,0.00013953,2]
[331772000,1720757478084,-538.43007561,0.00013953,2]
[331772001,1720757478094,-500.0,0.00013953,2]
[331772002,1720757478104,-500.0,0.00013953,2]
[331772003,1720757478114,-645.06,0.00013953,2]
[331772004,1720757478124,-500.0,0.00013953,2]
[331772005,1720757478134,-500.0,0.00013953,2]
[331772006,1720757478143,-1376.3,0.00013953,2]
[331772007,1720757478153,-500.0,0.00013953,2]
[331772008,1720757478163,-500.0,0.00013953,2]
[331772009,1720757478173,-500.0,0.00013953,2]
[331772010,1720757478182,-500.0,0.00013953,2]
[331772011,1720757478192,-500.0,0.00013953,2]
[331772012,1720757478202,-1078.39,0.00013953,2]
[331772013,1720757478211,-500.0,0.00013953,2]
[331772014,1720757478221,-1398.75,0.00013953,2]
[331772015,1720757478231,-500.0,0.00013953,2]
[331772016,1720757478241,-858.58,0.00013953,2]
[331772017,1720757478254,-500.0,0.00013953,2]
[331772018,1720757478263,-885.52,0.00013953,2]
[331772019,1720757478273,-1078.89,0.00013953,2]
[331772020,1720757478283,-666.27,0.00013953,2]
[331772021,1720757478292,-500.0,0.00013953,2]
[331772022,1720757478302,-500.0,0.00013953,2]
[331772023,1720757478312,-500.0,0.00013953,2]
[331772024,1720757478321,-727.69,0.00013953,2]
[331772025,1720757478331,-500.0,0.00013953,2]
[331772026,1720757478341,-844.07,0.00013953,2]
[331772027,1720757478350,-500.0,0.00013953,2]
[331772028,1720757478359,-500.0,0.00013953,2]
[331772029,1720757478369,-500.0,0.00013953,2]
[331772030,1720757478379,-995.51,0.00013953,2]
[331772031,1720757478389,-500.0,0.00013953,2]
[331772032,1720757478399,-500.0,0.00013953,2]
[331772033,1720757478408,-1177.01,0.00013953,2]
[331772034,1720757478417,-500.0,0.00013953,2]
[331772035,1720757478427,-500.0,0.00013953,2]
[331772036,1720757478437,-882.37,0.00013953,2]
[331772037,1720757478446,-948.8,0.00013953,2]
[331772038,1720757478456,-500.0,0.00013953,2]
[331772039,1720757478465,-826.44,0.00013953,2]
[331772040,1720757478475,-500.0,0.00013953,2]
[331772041,1720757478484,-946.15,0.00013953,2]
[331772042,1720757478495,-894.94,0.00013953,2]
[331772043,1720757478505,-512.17,0.00013953,2]
[331772044,1720757478514,-500.0,0.00013953,2]
[331772045,1720757478524,-876.89,0.00013953,2]
[331772046,1720757478534,-643.71,0.00013953,2]
[331772047,1720757478543,-500.0,0.00013953,2]
[331772048,1720757478553,-546.11,0.00013953,2]
[331772049,1720757478563,-815.39,0.00013953,2]
[331772050,1720757478572,-618.03,0.00013953,2]
[331772051,1720757478582,-1115.77,0.00013953,2]
[331772052,1720757478593,-1022.32,0.00013953,2]
[331772053,1720757478602,-500.0,0.00013953,2]
[331772054,1720757478612,-500.0,0.00013953,2]
[331772055,1720757478622,-750.75,0.00013953,2]
[331772056,1720757478632,-500.0,0.00013953,2]
[331772057,1720757478642,-500.0,0.00013953,2]
[331772058,1720757478652,-765.67,0.00013953,2]
[331772059,1720757478661,-500.0,0.00013953,2]
[331772060,1720757478671,-565.18,0.00013953,2]
[331772061,1720757478680,-500.0,0.00013953,2]
[331772062,1720757478690,-547.1,0.00013953,2]
[331772063,1720757478700,-500.0,0.00013953,2]
[331772064,1720757478710,-500.0,0.00013953,2]
[331772065,1720757478719,-500.0,0.00013953,2]
[331772066,1720757478729,-500.0,0.00013953,2]
[331772067,1720757478738,-310.13171496,0.00013953,2]
[331772068,1720757478749,-500.0,0.00013953,2]
[331772069,1720757478759,-554.7,0.00013953,2]
[331772070,1720757478769,-1050.21,0.00013953,2]
[331772071,1720757478778,-500.0,0.00013953,2]
[331772072,1720757478788,-1478.99,0.00013953,2]
[331772073,1720757478798,-500.0,0.00013953,2]